fUSD/lending_fUSD_20250305
["ID","MTS","AMOUNT","RATE_DAILY","PERIOD"]
[355455102,1741182644348,-500.0,0.00011136,2]
[355455103,1741182644359,-500.0,0.00011136,2]
[355455104,1741182644371,-528.52369294,0.00011136,2]
[355455105,1741182644384,-500.0,0.00011136,2]
[355455106,1741182644394,-500.0,0.00011136,2]
[355455107,1741182644404,-500.0,0.00011136,2]
[355455108,1741182644416,-500.0,0.00011136,2]
[355455109,1741182644428,-199.4049677,0.00011136,2]
[355455110,1741182644439,-550.75008522,0.00011136,2]
[355455111,1741182644449,-500.0,0.00011136,2]
[355455112,1741182644459,-500.0,0.00011136,2]
[355455113,1741182644471,-500.0,0.00011136,2]
[355455114,1741182644483,-691.88,0.00011136,2]
[355455115,1741182644493,-664.61,0.00011136,2]
[355455116,1741182644502,-500.0,0.00011136,2]
[355455117,1741182644512,-500.0,0.00011136,2]
[355455118,1741182644522,-500.0,0.00011136,2]
[355455119,1741182644531,-500.0,0.00011136,2]
[355455120,1741182644541,-1108.61,0.00011136,2]
[355455121,1741182644552,-500.0,0.00011136,2]
[355455122,1741182644562,-161.04456117,0.00011136,2]
[355455123,1741182644571,-500.0,0.00011136,2]
[355455124,1741182644581,-500.0,0.00011136,2]
[355455125,1741182644590,-523.82086872,0.00011136,2]
[355455126,1741182644599,-712.59,0.00011136,2]
[355455127,1741182644609,-1257.46,0.00011136,2]
[355455128,1741182644618,-848.2,0.00011136,2]
[355455129,1741182644627,-500.0,0.00011136,2]
[355455130,1741182644637,-500.0,0.00011136,2]
[355455131,1741182644647,-851.12,0.00011136,2]
[355455132,1741182644656,-741.36,0.00011136,2]
[355455133,1741182644666,-963.66,0.00011136,2]
[355455134,1741182644675,-500.0,0.00011136,2]
[355455135,1741182644684,-500.0,0.00011136,2]
[355455136,1741182644694,-500.0,0.00011136,2]
[355455137,1741182644703,-508.98727819,0.00011136,2]
[355455138,1741182644712,-516.79866626,0.00011136,2]
[355455139,1741182644722,-593.12700432,0.00011136,2]
[355455140,1741182644733,-531.15747234,0.00011136,2]
[355455141,1741182644745,-500.0,0.00011136,2]
[355455142,1741182644755,-500.0,0.00011136,2]
[355455143,1741182644765,-500.0,0.00011136,2]
[355455144,1741182644776,-500.0,0.00011136,2]
[355455145,1741182644786,-500.0,0.00011136,2]
[355455146,1741182644796,-517.25392123,0.00011136,2]
[355455147,1741182644806,-500.0,0.00011136,2]
[355455148,1741182644816,-838.99,0.00011136,2]
[355455149,1741182644826,-1057.46,0.00011136,2]
[355455150,1741182644836,-1248.93,0.00011136,2]
[355455151,1741182644846,-500.0,0.00011136,2]
[355455152,1741182644855,-500.0,0.00011136,2]
[355455153,1741182644865,-1725.99,0.00011136,2]
[355455154,1741182644874,-500.0,0.00011136,2]
[355455155,1741182644884,-1119.83,0.00011136,2]
[355455156,1741182644893,-500.0,0.00011136,2]
[355455157,1741182644903,-500.0,0.00011136,2]
[355455158,1741182644912,-500.0,0.00011136,2]
[355455159,1741182644922,-500.0,0.00011136,2]
[355455160,1741182644931,-2209.23,0.00011136,2]
[355455161,1741182644941,-511.94170326,0.00011136,2]
[355455162,1741182644951,-1101.62,0.00011136,2]
[355455163,1741182644961,-507.40944954,0.00011136,2]
[355455164,1741182644970,-511.70908566,0.00011136,2]
[355455165,1741182644980,-712.22,0.00011136,2]
[355455166,1741182644992,-1079.84,0.00011136,2]
[355455167,1741182645002,-500.0,0.00011136,2]
[355455168,1741182645011,-1492.0,0.00011136,2]
[355455169,1741182645021,-1224.2,0.00011136,2]
[355455170,1741182645031,-500.0,0.00011136,2]
[355455171,1741182645041,-1110.07,0.00011136,2]
[355455172,1741182645051,-1264.79,0.00011136,2]
[355455173,1741182645060,-854.74,0.00011136,2]
[355455174,1741182645070,-500.0,0.00011136,2]
[355455175,1741182645080,-869.53,0.00011136,2]
[355455176,1741182645089,-548.29907933,0.00011136,2]
[355455177,1741182645099,-500.0,0.00011136,2]
[355455178,1741182645108,-1429.6,0.00011136,2]
[355455179,1741182645119,-728.7,0.00011136,2]
[355455180,1741182645128,-500.0,0.00011136,2]
[355455181,1741182645138,-949.32,0.00011136,2]
[355455182,1741182645147,-500.0,0.00011136,2]
[355455183,1741182645157,-740.19,0.00011136,2]
[355455184,1741182645167,-1294.78,0.00011136,2]
[355455185,1741182645176,-500.0,0.00011136,2]
[355455186,1741182645185,-902.5,0.00011136,2]
[355455187,1741182645195,-703.72,0.00011136,2]
[355455188,1741182645204,-1143.22,0.00011136,2]
[355455189,1741182645214,-818.51,0.00011136,2]
[355455190,1741182645224,-743.73,0.00011136,2]
[355455191,1741182645235,-783.24,0.00011136,2]
[355455192,1741182645244,-500.0,0.00011136,2]
[355455193,1741182645253,-1243.07,0.00011136,2]
[355455194,1741182645261,-701.63,0.00011136,2]
[355455195,1741182645270,-500.0,0.00011136,2]
[355455196,1741182645278,-521.11,0.00011136,2]
[355455197,1741182645286,-1340.52,0.00011136,2]
[355455198,1741182645295,-714.53,0.00011136,2]
[355455199,1741182645305,-500.0,0.00011136,2]
[355455200,1741182645314,-516.05151962,0.00011136,2]
[355455201,1741182645322,-2233.63,0.00011136,2]
[355455202,1741182645331,-500.0,0.00011136,2]
[355455203,1741182645340,-500.0,0.00011136,2]
[355455204,1741182645349,-500.0,0.00011136,2]
[355455205,1741182645359,-961.3,0.00011136,2]
[355455206,1741182645371,-1121.71,0.00011136,2]
[355455207,1741182645383,-500.0,0.00011136,2]
[355455208,1741182645393,-500.0,0.00011136,2]
[355455209,1741182645403,-500.0,0.00011136,2]
[355455210,1741182645414,-1301.04,0.00011136,2]
[355455211,1741182645424,-2060.95,0.00011136,2]
[355455212,1741182645434,-500.0,0.00011136,2]
[355455213,1741182645444,-500.0,0.00011136,2]
[355455214,1741182645455,-2297.18,0.00011136,2]
[355455215,1741182645465,-744.92,0.00011136,2]
[355455216,1741182645474,-724.24,0.00011136,2]
[355455217,1741182645484,-2185.54,0.00011136,2]
[355455218,1741182645494,-500.0,0.00011136,2]
[355455219,1741182645504,-854.49,0.00011136,2]
[355455220,1741182645513,-511.47022987,0.00011136,2]
[355455221,1741182645523,-2423.53,0.00011136,2]
[355455222,1741182645531,-500.0,0.00011136,2]
[355455223,1741182645541,-500.0,0.00011136,2]
[355455224,1741182645550,-1191.38,0.00011136,2]
[355455225,1741182645558,-736.04,0.00011136,2]
[355455227,1741182645567,-2661.61,0.00011136,2]
[355455228,1741182645576,-9250.5,0.00011136,2]
[355455229,1741182645585,-500.0,0.00011136,2]
[355455230,1741182645594,-500.0,0.00011136,2]
[355455232,1741182645603,-1582.82,0.00011136,2]
[355455233,1741182645612,-718.57,0.00011136,2]
[355455234,1741182645621,-513.65675765,0.00011136,2]
[355455235,1741182645630,-500.0,0.00011136,2]
[355455236,1741182645639,-500.0,0.00011136,2]
[355455237,1741182645648,-5980.25,0.00011136,2]
[355455238,1741182645657,-500.0,0.00011136,2]
[355455239,1741182645667,-1092.17,0.00011136,2]
[355455240,1741182645676,-500.0,0.00011136,2]
[355455241,1741182645685,-500.0,0.00011136,2]
[355455242,1741182645694,-500.0,0.00011136,2]
[355455243,1741182645703,-28476.63,0.00011136,2]
[355455244,1741182645712,-636.9002248,0.00011136,2]
[355455245,1741182645722,-228.32292035,0.00011136,2]
[355455246,1741182645731,-500.0,0.00011136,2]
[355455247,1741182645742,-500.0,0.00011136,2]
[355455248,1741182645751,-500.0,0.00011136,2]
[355455249,1741182645761,-746.31,0.00011136,2]
[355455250,1741182645771,-1344.63,0.00011136,2]
[355455251,1741182645780,-534.07170634,0.00011136,2]
[355455252,1741182645789,-1785.76,0.00011136,2]
[355455253,1741182645798,-500.0,0.00011136,2]
[355455254,1741182645807,-500.0,0.00011136,2]
[355455255,1741182645816,-500.0,0.00011136,2]
[355455256,1741182645824,-1487.03,0.00011136,2]
[355455257,1741182645834,-500.0,0.00011136,2]
[355455258,1741182645843,-1400.31,0.00011136,2]
[355455259,1741182645851,-500.0,0.00011136,2]
[355455260,1741182645860,-500.0,0.00011136,2]
[355455261,1741182645869,-500.0,0.00011136,2]
[355455262,1741182645877,-1554.81,0.00011136,2]
[355455263,1741182645886,-500.0,0.00011136,2]
[355455264,1741182645893,-500.0,0.00011136,2]
[355455265,1741182645900,-4149.0,0.00011136,2]
[355455266,1741182645908,-500.0,0.00011136,2]
[355455267,1741182645917,-500.0,0.00011136,2]
[355455268,1741182645927,-500.0,0.00011136,2]
[355455269,1741182645936,-29361.33183063,0.00011136,2]
[355455272,1741182646677,-305.6144,0.00011136,2]
[355455273,1741182646688,-2413.67376937,0.00011136,2]
[355455274,1741182646697,-500.0,0.00011136,2]
[355455275,1741182646706,-500.0,0.00011136,2]
[355455276,1741182646716,-500.0,0.00011136,2]
[355455277,1741182646725,-1080.16,0.00011136,2]
[355455278,1741182646736,-1053.35,0.00011136,2]
[355455279,1741182646745,-500.0,0.00011136,2]
[355455280,1741182646755,-500.0,0.00011136,2]
[355455281,1741182646764,-500.0,0.00011136,2]
[355455282,1741182646773,-785.26,0.00011136,2]
[355455283,1741182646783,-500.0,0.00011136,2]
[355455284,1741182646793,-500.0,0.00011136,2]
[355455285,1741182646802,-1430.66,0.00011136,2]
[355455286,1741182646811,-625.71,0.00011136,2]
[355455287,1741182646820,-500.0,0.00011136,2]
[355455288,1741182646829,-500.0,0.00011136,2]
[355455289,1741182646839,-1253.96,0.00011136,2]
[355455290,1741182646847,-500.0,0.00011136,2]
[355455291,1741182646858,-1327.23,0.00011136,2]
[355455292,1741182646867,-500.0,0.00011136,2]
[355455293,1741182646876,-6345.73,0.00011136,2]
[355455294,1741182646886,-500.0,0.00011136,2]
[355455295,1741182646895,-1100.81,0.00011136,2]
[355455296,1741182646904,-754.44,0.00011136,2]
[355455297,1741182646913,-500.0,0.00011136,2]
[355455298,1741182646922,-500.0,0.00011136,2]
[355455299,1741182646931,-2124.55,0.00011136,2]
[355455300,1741182646940,-500.0,0.00011136,2]
[355455301,1741182646950,-500.0,0.00011136,2]
[355455302,1741182646959,-705.32,0.00011136,2]
[355455303,1741182646968,-5792.77,0.00011136,2]
[355455304,1741182646978,-500.0,0.00011136,2]
[355455305,1741182646990,-500.0,0.00011136,2]
[355455306,1741182646999,-500.0,0.00011136,2]
[355455307,1741182647009,-500.0,0.00011136,2]
[355455308,1741182647019,-500.0,0.00011136,2]
[355455309,1741182647028,-500.0,0.00011136,2]
[355455310,1741182647039,-5067.14,0.00011136,2]
[355455311,1741182647048,-500.0,0.00011136,2]
[355455312,1741182647058,-596.31,0.00011136,2]
[355455313,1741182647067,-500.0,0.00011136,2]
[355455314,1741182647077,-500.0,0.00011136,2]
[355455315,1741182647087,-510.51073649,0.00011136,2]
[355455316,1741182647097,-4387.26,0.00011136,2]
[355455317,1741182647106,-500.0,0.00011136,2]
[355455318,1741182647116,-1587.32,0.00011136,2]
[355455319,1741182647125,-509.5460594,0.00011136,2]
[355455320,1741182647135,-1308.66,0.00011136,2]
[355455321,1741182647144,-500.0,0.00011136,2]
[355455322,1741182647154,-1172.88,0.00011136,2]
[355455323,1741182647163,-500.0,0.00011136,2]
[355455324,1741182647172,-500.0,0.00011136,2]
[355455325,1741182647181,-500.0,0.00011137,2]
[355455326,1741182647190,-502.88821685,0.00011137,2]
[355455327,1741182647199,-503.64029271,0.00011137,2]
[355455328,1741182647209,-500.0,0.00011137,2]
[355455329,1741182647219,-500.0,0.00011137,2]
[355455330,1741182647228,-500.0,0.00011137,2]
[355455331,1741182647241,-503.0232213,0.00011137,2]
[355455332,1741182647251,-396.48891798,0.00011137,2]
[355455333,1741182647260,-557.89924819,0.00011137,2]
[355455334,1741182647269,-500.0,0.00011137,2]
[355455335,1741182647279,-502.53622273,0.00011137,2]
[355455336,1741182647289,-503.0616908,0.00011137,2]
[355455337,1741182647299,-500.0,0.00011137,2]
[355455338,1741182647308,-500.98457176,0.00011137,2]
[355455339,1741182647318,-312.24511079,0.00011137,2]
[355455340,1741182647328,-378.19648185,0.00011137,2]
[355455341,1741182647337,-500.0,0.00011137,2]
[355455342,1741182647347,-500.0,0.00011137,2]
[355455343,1741182647356,-500.0,0.00011137,2]
[355455344,1741182647366,-420.32741824,0.00011137,2]
[355455345,1741182647377,-509.50271212,0.00011137,2]
[355455346,1741182647389,-505.59704104,0.00011137,2]
[355455347,1741182647398,-502.42321405,0.00011137,2]
[355455348,1741182647405,-501.72183613,0.00011137,2]
[355455349,1741182647412,-525.63002547,0.00011137,2]
[355455350,1741182647420,-501.03911202,0.00011137,2]
[355455351,1741182647427,-500.0,0.00011137,2]
[355455352,1741182647435,-500.0,0.00011137,2]
[355455353,1741182647445,-500.0,0.00011137,2]
[355455354,1741182647455,-500.0,0.00011137,2]
[355455355,1741182647464,-972.85,0.00011137,2]
[355455356,1741182647474,-510.12786371,0.00011137,2]
[355455357,1741182647484,-500.0,0.00011137,2]
[355455358,1741182647496,-500.0,0.00011137,2]
[355455359,1741182647505,-500.0,0.00011137,2]
[355455360,1741182647514,-500.0,0.00011137,2]
[355455361,1741182647523,-966.8,0.00011137,2]
[355455362,1741182647533,-509.48596065,0.00011137,2]
[355455363,1741182647542,-515.49182177,0.00011137,2]
[355455364,1741182647553,-500.0,0.00011137,2]
[355455365,1741182647562,-500.0,0.00011137,2]
[355455366,1741182647571,-500.0,0.00011137,2]
[355455367,1741182647581,-500.0,0.00011137,2]
[355455368,1741182647590,-500.0,0.00011137,2]
[355455369,1741182647600,-509.82153811,0.00011137,2]
[355455370,1741182647609,-500.0,0.00011137,2]
[355455371,1741182647619,-3943.28120046,0.00011137,2]
[355455372,1741182647628,-1125.72,0.00011137,2]
[355455373,1741182647637,-500.0,0.00011137,2]
[355455374,1741182647647,-500.0,0.00011137,2]
[355455375,1741182647657,-500.0,0.00011137,2]
[355455376,1741182647666,-500.0,0.00011137,2]
[355455377,1741182647676,-899.51,0.00011137,2]
[355455378,1741182647685,-1475.02,0.00011137,2]
[355455379,1741182647695,-500.0,0.00011137,2]
[355455380,1741182647704,-548.1,0.00011137,2]
[355455381,1741182647713,-500.0,0.00011137,2]
[355455382,1741182647722,-500.0,0.00011137,2]
[355455383,1741182647731,-500.0,0.00011137,2]
[355455384,1741182647743,-500.0,0.00011137,2]
[355455385,1741182647752,-500.0,0.00011137,2]
[355455386,1741182647761,-500.0,0.00011137,2]
[355455387,1741182647771,-550.83,0.00011137,2]
[355455388,1741182647779,-500.0,0.00011137,2]
[355455389,1741182647788,-511.37,0.00011137,2]
[355455390,1741182647797,-609.76,0.00011137,2]
[355455391,1741182647806,-1592.09,0.00011137,2]
[355455392,1741182647814,-500.0,0.00011137,2]
[355455393,1741182647823,-508.01201702,0.00011137,2]
[355455394,1741182647832,-500.0,0.00011137,2]
[355455395,1741182647841,-500.0,0.00011137,2]
[355455396,1741182647850,-500.0,0.00011137,2]
[355455397,1741182647859,-500.0,0.00011137,2]
[355455398,1741182647868,-500.0,0.00011137,2]
[355455399,1741182647877,-808.08,0.00011137,2]
[355455400,1741182647886,-1454.33,0.00011137,2]
[355455401,1741182647895,-1996.13,0.00011137,2]
[355455402,1741182647903,-2093.08,0.00011137,2]
[355455403,1741182647909,-500.0,0.00011137,2]
[355455404,1741182647917,-500.0,0.00011137,2]
[355455405,1741182647923,-518.1,0.00011137,2]
[355455406,1741182647930,-1410.26,0.00011137,2]
[355455407,1741182647936,-1359.39,0.00011137,2]
[355455408,1741182647943,-507.69,0.00011137,2]
[355455409,1741182647951,-1810.94,0.00011137,2]
[355455410,1741182647958,-2460.25,0.00011137,2]
[355455411,1741182647965,-1927.66,0.00011137,2]
[355455412,1741182647972,-500.0,0.00011137,2]
[355455413,1741182647979,-602.17,0.00011137,2]
[355455414,1741182647988,-2992.3,0.00011137,2]
[355455415,1741182647997,-2998.85,0.00011137,2]
[355455416,1741182648006,-1011.2,0.00011137,2]
[355455417,1741182648015,-500.0,0.00011137,2]
[355455418,1741182648024,-1876.81,0.00011137,2]
[355455419,1741182648032,-500.0,0.00011137,2]
[355455420,1741182648040,-1367.93,0.00011137,2]
[355455421,1741182648049,-1333.18,0.00011137,2]
[355455422,1741182648058,-500.0,0.00011137,2]
[355455423,1741182648066,-500.0,0.00011137,2]
[355455424,1741182648075,-500.0,0.00011137,2]
[355455425,1741182648085,-1649.38,0.00011137,2]
[355455426,1741182648095,-500.0,0.00011137,2]
[355455427,1741182648104,-1383.54,0.00011137,2]
[355455428,1741182648113,-1380.08,0.00011137,2]
[355455429,1741182648123,-2183.95,0.00011137,2]
[355455430,1741182648133,-1787.82,0.00011137,2]
[355455431,1741182648142,-1396.53,0.00011137,2]
[355455432,1741182648152,-500.0,0.00011137,2]
[355455433,1741182648161,-1756.36,0.00011137,2]
[355455434,1741182648171,-1075.38,0.00011137,2]
[355455435,1741182648180,-1204.22,0.00011137,2]
[355455436,1741182648189,-311.23761685,0.00011137,2]
[355455437,1741182648199,-1383.66,0.00011137,2]
[355455438,1741182648208,-500.0,0.00011137,2]
[355455439,1741182648217,-1987.78,0.00011137,2]
[355455440,1741182648229,-1032.12,0.00011137,2]
[355455441,1741182648245,-3361.11,0.00011137,2]
[355455442,1741182648260,-2214.53,0.00011137,2]
[355455443,1741182648274,-2194.99,0.00011137,2]
[355455444,1741182648285,-715.64,0.00011137,2]
[355455445,1741182648299,-2451.98,0.00011143,2]
[355455446,1741182648312,-1565.53,0.00011143,2]
[355455447,1741182648325,-1098.63,0.00011143,2]
[355455448,1741182648340,-2545.88,0.00011143,2]
[355455449,1741182648354,-2039.13,0.00011143,2]
[355455450,1741182648368,-3466.23,0.00011143,2]
[355455451,1741182648385,-1325.45,0.00011143,2]
[355455452,1741182648397,-3727.33,0.00011143,2]
[355455453,1741182648408,-1642.86,0.00011143,2]
[355455454,1741182648427,-2089.92,0.00011143,2]
[355455455,1741182648441,-971.42,0.00011143,2]
[355455456,1741182648455,-500.0,0.00011143,2]
[355455457,1741182648469,-3009.82,0.00011143,2]
[355455458,1741182648482,-919.34,0.00011143,2]
[355455459,1741182648497,-500.0,0.00011143,2]
[355455460,1741182648511,-2344.45,0.00011143,2]
[355455461,1741182648525,-555.13,0.00011143,2]
[355455462,1741182648540,-1604.02,0.00011143,2]
[355455463,1741182648552,-500.0,0.00011143,2]
[355455464,1741182648565,-182.34,0.00011144,2]
[355455465,1741182648578,-56460.0386483,0.0001115,2]
[355455466,1741182648591,-1181.23492448,0.00011155,2]
[355455467,1741182648604,-167.41,0.00011155,2]
[355455468,1741182648617,-151.43,0.00011167,2]
[355455469,1741182648630,-500.0,0.00011173,2]
[355455470,1741182648643,-351.62555689,0.00011173,2]
[355455471,1741182648655,-238.29616479,0.00011173,2]
[355455472,1741182648667,-500.0,0.00011173,2]
[355455473,1741182648678,-2673.403,0.00011173,2]
[355455474,1741182648689,-518.91426565,0.00011175,2]
[355455475,1741182648703,-161.05,0.0001118,2]
[355455476,1741182648718,-1406.01783865,0.000112,2]
[355455477,1741182648728,-1406.01783836,0.000112,2]
[355455478,1741182648738,-1406.01783836,0.000112,2]
[355455479,1741182648749,-1406.01783836,0.000112,2]
[355455480,1741182648761,-1406.01783836,0.000112,2]
[355455481,1741182648776,-1000.0,0.000112,2]
[355455482,1741182648789,-1000.0,0.00011222,2]
[355455483,1741182648801,-1181.23492448,0.00011233,2]
[355455484,1741182648812,-1406.01783836,0.00011245,2]
[355455485,1741182648823,-287.7825888,0.0001125,2]
[355455486,1741182648836,-518.91426565,0.0001125,2]
[355455487,1741182648847,-1278.0,0.00011302,2]
[355455488,1741182648859,-2032.0,0.00011302,2]
[355455489,1741182648871,-1459.0,0.00011302,2]
[355455490,1741182648883,-571.0,0.00011302,2]
[355455491,1741182648896,-150.0,0.00011302,2]
[355455492,1741182648912,-640.0,0.00011302,2]
[355455493,1741182648925,-786.0,0.00011302,2]
[355455494,1741182648936,-541.0,0.00011302,2]
[355455495,1741182648948,-1427.0,0.00011302,2]
[355455496,1741182648960,-907.0,0.00011302,2]
[355455497,1741182648972,-1270.0,0.00011302,2]
[355455498,1741182648985,-4041.0,0.00011302,2]
[355455499,1741182648999,-3930.0,0.00011302,2]
[355455500,1741182649012,-150.0,0.00011302,2]
[355455501,1741182649024,-1012.0,0.00011302,2]
[355455502,1741182649037,-185.08942744,0.0001131,2]
[355455503,1741182649049,-1181.23492448,0.00011311,2]
[355455504,1741182649061,-1406.01783836,0.00011314,2]
[355455505,1741182649074,-518.91426565,0.00011325,2]
[355455506,1741182649085,-340.84699248,0.00011354,2]
[355455507,1741182649098,-3265.25854,0.0001137,2]
[355455508,1741182649110,-500.0,0.00011373,2]
[355455509,1741182649123,-500.0,0.00011373,2]
[355455510,1741182649135,-508.10369592,0.00011373,2]
[355455511,1741182649146,-500.0,0.00011373,2]
[355455512,1741182649158,-607.28,0.00011373,2]
[355455513,1741182649170,-500.0,0.00011373,2]
[355455514,1741182649183,-500.0,0.00011373,2]
[355455515,1741182649195,-500.0,0.00011373,2]
[355455516,1741182649207,-500.0,0.00011373,2]
[355455517,1741182649219,-500.0,0.00011373,2]
[355455518,1741182649231,-560.99,0.00011373,2]
[355455519,1741182649246,-500.0,0.00011373,2]
[355455520,1741182649258,-509.56144028,0.00011373,2]
[355455521,1741182649270,-500.0,0.00011373,2]
[355455522,1741182649282,-500.0,0.00011373,2]
[355455523,1741182649294,-506.18136276,0.00011373,2]
[355455524,1741182649306,-172.81101457,0.00011373,2]
[355455525,1741182649319,-511.86984571,0.00011373,2]
[355455526,1741182649332,-500.0,0.00011373,2]
[355455527,1741182649344,-510.80279767,0.00011373,2]
[355455528,1741182649355,-191.71177596,0.00011373,2]
[355455529,1741182649366,-526.95139997,0.00011373,2]
[355455530,1741182649380,-500.0,0.00011373,2]
[355455531,1741182649394,-500.0,0.00011373,2]
[355455532,1741182649406,-1115.6,0.00011373,2]
[355455533,1741182649417,-500.0,0.00011373,2]
[355455534,1741182649431,-500.0,0.00011373,2]
[355455535,1741182649442,-500.0,0.00011373,2]
[355455536,1741182649455,-1406.68,0.00011373,2]
[355455537,1741182649467,-500.0,0.00011373,2]
[355455538,1741182649479,-520.77462484,0.00011373,2]
[355455539,1741182649490,-514.41003146,0.00011373,2]
[355455540,1741182649503,-1473.37,0.00011373,2]
[355455541,1741182649514,-511.31073969,0.00011373,2]
[355455542,1741182649526,-547.04,0.00011373,2]
[355455543,1741182649537,-512.01,0.00011373,2]
[355455544,1741182649549,-2046.89,0.00011373,2]
[355455545,1741182649561,-612.25,0.00011373,2]
[355455546,1741182649572,-500.0,0.00011373,2]
[355455547,1741182649584,-500.0,0.00011373,2]
[355455548,1741182649595,-571.25,0.00011373,2]
[355455549,1741182649607,-373.14989,0.00011373,2]
[355455550,1741182649619,-500.0,0.00011373,2]
[355455551,1741182649631,-432.04335702,0.00011373,2]
[355455552,1741182649642,-1794.03,0.00011373,2]
[355455553,1741182649654,-3116.55,0.00011373,2]
[355455554,1741182649666,-500.0,0.00011373,2]
[355455555,1741182649677,-7168.33,0.00011373,2]
[355455556,1741182649689,-543.35855465,0.00011373,2]
[355455557,1741182649701,-500.0,0.00011373,2]
[355455558,1741182649713,-500.0,0.00011373,2]
[355455559,1741182649724,-500.0,0.00011373,2]
[355455560,1741182649735,-500.0,0.00011373,2]
[355455561,1741182649749,-268.815132,0.00011373,2]
[355455562,1741182649760,-1714.56,0.00011373,2]
[355455563,1741182649771,-500.0,0.00011373,2]
[355455564,1741182649783,-549.79,0.00011373,2]
[355455565,1741182649794,-500.0,0.00011373,2]
[355455566,1741182649806,-6478.35,0.00011373,2]
[355455567,1741182649817,-1458.72,0.00011373,2]
[355455568,1741182649827,-500.0,0.00011373,2]
[355455569,1741182649836,-1874.29,0.00011373,2]
[355455570,1741182649844,-2624.12,0.00011373,2]
[355455571,1741182649853,-2163.9,0.00011373,2]
[355455572,1741182649863,-500.0,0.00011373,2]
[355455573,1741182649872,-1908.48,0.00011373,2]
[355455574,1741182649881,-1108.16,0.00011373,2]
[355455575,1741182649889,-1709.93,0.00011373,2]
[355455576,1741182649900,-924.62,0.00011373,2]
[355455577,1741182649910,-591.41,0.00011373,2]
[355455578,1741182649921,-741.6,0.00011373,2]
[355455579,1741182649932,-500.0,0.00011373,2]
[355455580,1741182649944,-3387.23,0.00011373,2]
[355455581,1741182649956,-500.0,0.00011373,2]
[355455582,1741182649967,-500.0,0.00011373,2]
[355455583,1741182649979,-1642.84,0.00011373,2]
[355455584,1741182649992,-2001.54,0.00011373,2]
[355455585,1741182650004,-1946.12,0.00011373,2]
[355455586,1741182650015,-702.24,0.00011373,2]
[355455587,1741182650027,-500.0,0.00011373,2]
[355455588,1741182650039,-3717.48,0.00011373,2]
[355455589,1741182650051,-500.0,0.00011373,2]
[355455590,1741182650062,-1180.83,0.00011373,2]
[355455591,1741182650074,-616.5,0.00011373,2]
[355455592,1741182650085,-531.41,0.00011373,2]
[355455593,1741182650096,-7211.91,0.00011373,2]
[355455594,1741182650108,-2543.58,0.00011373,2]
[355455595,1741182650119,-500.0,0.00011373,2]
[355455596,1741182650130,-1843.54,0.00011373,2]
[355455597,1741182650140,-535.06,0.00011373,2]
[355455598,1741182650151,-500.0,0.00011373,2]
[355455599,1741182650162,-541.53,0.00011373,2]
[355455600,1741182650173,-540.61882995,0.00011373,2]
[355455601,1741182650184,-622.22,0.00011373,2]
[355455602,1741182650194,-1968.91,0.00011373,2]
[355455603,1741182650206,-1296.18,0.00011373,2]
[355455604,1741182650217,-1258.55,0.00011373,2]
[355455605,1741182650228,-500.0,0.00011373,2]